bitfinex/quotes_SOLUSD_20240607
["timestamp","ask_amount","ask_price","bid_price","bid_amount"]
[1717801329042,6.65,163.2,163.14,6.65]
[1717801329668,47.2667,163.23,163.14,6.65]
[1717801329974,45.0,163.22,163.14,6.65]
[1717801330146,6.65,163.21,163.14,6.65]
[1717801330342,6.65,163.21,163.15,6.65]
[1717801330549,6.65,163.22,163.16,6.65]
[1717801331063,2.2665,163.25,163.16,6.65]
[1717801331270,6.65,163.22,163.16,6.65]
[1717801331450,2.2665,163.25,163.16,6.65]
[1717801331649,6.65,163.22,163.16,6.65]
[1717801332171,2.2665,163.25,163.16,6.65]
[1717801332473,6.65,163.22,163.16,6.65]
[1717801333152,2.2665,163.25,163.16,6.65]
[1717801333456,6.65,163.22,163.16,6.65]
[1717801333765,45.0,163.25,163.16,6.65]
[1717801334070,6.65,163.21,163.15,6.65]
[1717801335561,47.2664,163.25,163.15,6.65]
[1717801335753,6.65,163.21,163.15,6.65]
[1717801336584,6.65,163.22,163.15,6.65]
[1717801339687,47.2664,163.25,163.15,6.65]
[1717801339850,6.65,163.22,163.15,6.65]
[1717801341566,6.65,163.22,163.12,7.77594243]
[1717801341773,6.65,163.21,163.15,6.65]
[1717801346989,45.0,163.25,163.12,7.77594243]
[1717801347176,6.65,163.19,163.12,7.77594243]
[1717801347489,6.65,163.19,163.13,6.65]
[1717801347990,2.2666,163.24,163.14,6.65]
[1717801348288,6.65,163.2,163.12,7.77594243]
[1717801348462,6.65,163.2,163.14,6.65]
[1717801349566,6.65,163.2,163.12,7.77594243]
[1717801349891,6.65,163.2,163.14,6.65]
[1717801350387,6.65,163.2,163.12,7.77594243]
[1717801350594,6.65,163.2,163.14,6.65]
[1717801351077,6.65,163.2,163.12,7.77594243]
[1717801351405,6.65,163.2,163.13,6.65]
[1717801351590,6.65,163.2,163.12,7.77594243]
[1717801351763,6.65,163.2,163.13,6.65]
[1717801351965,2.2667,163.23,163.13,6.65]
[1717801352178,6.65,163.2,163.13,6.65]
[1717801352780,6.65,163.2,163.14,6.65]
[1717801353276,2.2667,163.23,163.14,6.65]
[1717801353465,45.0,163.23,163.14,6.65]
[1717801353666,6.65,163.2,163.14,6.65]
[1717801354090,6.65,163.21,163.14,6.65]
[1717801356874,6.65,163.2,163.14,6.65]
[1717801357081,6.65,163.18,163.12,7.77594243]
[1717801357485,6.65,163.17,163.12,7.77594243]
[1717801358682,2.2669,163.22,163.12,7.77594243]
[1717801358877,6.65,163.17,163.12,7.77594243]
[1717801359075,2.2669,163.22,163.12,7.77594243]
[1717801359274,6.65,163.17,163.12,7.77594243]
[1717801360788,2.2669,163.22,163.12,7.77594243]
[1717801361090,6.65,163.17,163.12,1.62254243]
[1717801361497,6.65,163.15,163.12,1.62254243]
[1717801364097,6.65,163.16,163.12,1.62254243]
[1717801364672,2.2672,163.2,163.12,1.62254243]
[1717801364975,6.65,163.16,163.12,1.62254243]
[1717801366896,2.2672,163.19,163.12,1.62254243]
[1717801367077,6.65,163.16,163.12,1.62254243]
[1717801367792,6.65,163.14,163.12,1.62254243]
[1717801368097,6.65,163.13,163.12,1.62254243]
[1717801368597,2.2675,163.18,163.12,1.62254243]
[1717801368786,6.65,163.14,163.12,1.62254243]
[1717801369093,6.65,163.15,163.12,1.62254243]
[1717801369290,47.2673,163.19,163.12,1.62254243]
[1717801369596,6.65,163.16,163.12,1.62254243]
[1717801371799,6.65,163.17,163.12,1.62254243]
[1717801372773,45.0,163.19,163.12,7.98454243]
[1717801373083,45.0,163.19,163.12,14.63454243]
[1717801373287,6.65,163.18,163.12,14.63454243]
[1717801375418,6.65,163.18,163.12,7.98454243]
[1717801378511,6.65,163.18,163.12,14.63454243]
[1717801379095,6.65,163.19,163.13,6.65]
[1717801379408,8.9171,163.2,163.13,6.65]
[1717801379612,6.65,163.2,163.13,6.65]
[1717801380412,2.267,163.21,163.13,6.65]
[1717801381010,6.65,163.2,163.13,6.65]
[1717801382020,6.65,163.19,163.12,7.98454243]
[1717801382817,2.267,163.21,163.12,7.98454243]
[1717801383014,6.65,163.19,163.12,7.98454243]
[1717801383203,6.65,163.19,163.13,6.65]
[1717801384314,6.65,163.16,163.12,7.98454243]
[1717801384516,6.65,163.16,163.12,1.62254243]
[1717801387019,6.65,163.16,163.12,7.98454243]
[1717801387201,6.65,163.16,163.13,1.67857849]
[1717801387402,2.267,163.21,163.13,1.67857849]
[1717801387623,6.65,163.17,163.13,1.67857849]
[1717801388627,6.65,163.16,163.13,1.67857849]
[1717801388938,6.65,163.17,163.13,1.67857849]
[1717801391824,2.267,163.21,163.13,1.67857849]
[1717801392120,6.65,163.19,163.13,1.67857849]
[1717801393025,6.65,163.18,163.13,1.67857849]
[1717801393619,6.65,163.18,163.13,7.81387849]
[1717801400423,6.65,163.17,163.13,1.67857849]
[1717801401025,6.65,163.16,163.13,1.67857849]
[1717801401626,6.65,163.17,163.13,1.67857849]
[1717801402924,6.65,163.16,163.13,1.67857849]
[1717801403124,6.65,163.14,163.13,1.67857849]
[1717801403302,6.65,163.14,163.07,22.6714]
[1717801403505,6.65,163.13,163.07,16.0214]
[1717801403706,6.65,163.13,163.07,22.6714]
[1717801404134,6.65,163.13,163.08,1.67968485]
[1717801404307,6.65,163.13,163.08,7.81498485]
[1717801405525,6.65,163.11,163.08,1.67968485]
[1717801406740,2.2679,163.15,163.08,1.67968485]
[1717801412640,2.268,163.14,163.08,1.67968485]
[1717801417940,2.2679,163.15,163.08,1.67968485]
[1717801418444,2.268,163.14,163.08,1.67968485]
[1717801427128,26.6,163.17,163.08,1.67968485]
[1717801427335,2.2677,163.16,163.08,8.32968485]
[1717801427646,2.2676,163.17,163.09,6.65]
[1717801427853,6.65,163.16,163.09,6.65]
[1717801428430,8.9177,163.16,163.09,6.65]
[1717801429239,6.65,163.15,163.09,6.65]
[1717801430353,6.65,163.15,163.08,8.32968485]
[1717801430741,6.65,163.14,163.08,8.32968485]
[1717801431638,6.65,163.13,163.08,1.67968485]
[1717801431837,6.65,163.13,163.08,7.74388485]
[1717801433052,2.2678,163.15,163.08,7.74388485]
[1717801433429,6.65,163.13,163.09,6.0642]
[1717801434042,6.65,163.12,163.09,6.0642]
[1717801434439,6.65,163.11,163.09,6.0642]
[1717801434648,6.65,163.12,163.09,6.0642]
[1717801437147,6.65,163.12,163.08,1.67968485]
[1717801438859,2.2678,163.15,163.08,1.67968485]
[1717801439039,6.65,163.12,163.08,1.67968485]
[1717801439563,2.2678,163.15,163.08,1.67968485]
[1717801439856,6.65,163.12,163.08,1.67968485]
[1717801441359,2.2678,163.15,163.08,1.67968485]
[1717801441659,6.65,163.12,163.08,1.67968485]
[1717801441858,2.2678,163.15,163.08,1.67968485]
[1717801442160,6.65,163.12,163.08,1.67968485]
[1717801444261,6.65,163.13,163.08,1.67968485]
[1717801444947,6.65,163.12,163.08,1.67968485]
[1717801445445,6.65,163.1,163.08,1.67968485]
[1717801446754,6.65,163.1,163.05,6.0642]
[1717801450267,6.65,163.1,163.06,1.64186077]
[1717801454174,2.2681,163.13,163.06,1.64186077]
[1717801454375,6.65,163.1,163.06,1.64186077]
[1717801457257,2.268,163.14,163.06,1.64186077]
[1717801457452,6.65,163.1,163.06,1.64186077]
[1717801457668,6.65,163.11,163.06,1.64186077]
[1717801465669,6.65,163.1,163.06,1.64186077]
[1717801466869,2.2687,163.09,163.06,1.64186077]
[1717801467071,6.65,163.07,163.01,6.0642]
[1717801467268,13.0435,163.13,163.0,6.4848]
[1717801467269,23.9205698,163.13,163.0,6.4848]
[1717801467477,6.65,163.08,163.02,6.65]
[1717801467964,6.65,163.08,163.03,1.60286162]
[1717801470280,2.2684,163.11,163.03,1.60286162]
[1717801470281,6.65,163.07,163.03,1.60286162]
[1717801470585,6.65,163.08,163.03,1.60286162]
[1717801470784,6.65,163.07,163.03,1.60286162]
[1717801477891,2.2685,163.1,163.03,1.60286162]
[1717801478088,6.65,163.07,163.03,1.60286162]
[1717801480303,2.2686,163.1,163.03,1.60286162]
[1717801480595,6.65,163.08,163.03,1.60286162]
[1717801481668,2.2686,163.1,163.03,1.60286162]
[1717801481871,6.65,163.09,163.03,1.60286162]
[1717801482171,51.65,163.08,163.03,1.60286162]
[1717801482578,45.0,163.08,163.03,1.60286162]
[1717801482778,6.65,163.07,163.03,1.60286162]
[1717801485279,6.65,163.06,163.03,1.60286162]
[1717801485800,15.1517,163.04,163.03,1.60286162]
[1717801485983,60.1517,163.04,162.96,12.7167]
[1717801486297,6.65,163.02,162.96,12.7167]
[1717801486599,6.65,163.02,162.96,6.65]
[1717801487899,8.5018,163.04,162.96,6.65]
[1717801488117,6.65,163.02,162.96,6.65]
[1717801489081,6.65,163.02,162.97,1.60345174]
[1717801493003,6.65,163.03,162.97,1.60345174]
[1717801493197,45.0,163.02,162.97,1.60345174]
[1717801494507,51.65,163.02,162.97,1.60345174]
[1717801496904,58.1493,163.02,162.97,1.60345174]
[1717801497808,51.4993,163.02,162.97,1.60345174]
[1717801498010,58.1493,163.02,162.97,1.60345174]
[1717801499712,6.65,163.01,162.97,1.60345174]
[1717801500100,58.1493,163.02,162.97,1.60345174]
[1717801500289,8.9199,163.0,162.97,1.60345174]
[1717801500501,6.65,163.0,162.97,1.60345174]
[1717801500711,8.8403,163.01,162.97,1.60345174]
[1717801501016,51.65,163.0,162.97,1.60345174]
[1717801504221,2.2696,163.03,162.97,1.60345174]
[1717801504523,53.9196,163.03,162.97,1.60345174]
[1717801504725,53.9196,163.03,162.97,8.25345174]
[1717801505099,2.2696,163.02,162.97,8.25345174]
[1717801505321,47.2696,163.02,162.97,8.25345174]
[1717801505625,47.2696,163.02,162.97,1.60345174]
[1717801505838,53.9196,163.02,162.97,1.60345174]
[1717801506826,2.2698,163.01,162.97,1.60345174]
[1717801507018,53.9198,163.01,162.97,1.60345174]
[1717801509605,47.2698,163.01,162.97,1.60345174]
[1717801510218,45.0,163.01,162.97,1.60345174]
[1717801512422,47.2698,163.01,162.97,1.60345174]
[1717801512608,45.0,163.01,162.96,6.65]
[1717801513927,2.269,163.07,163.0,6.65]
[1717801514126,2.2688,163.08,163.03,6.65]
[1717801514713,6.65,163.07,163.01,6.65]
[1717801514927,8.919,163.07,163.01,6.65]
[1717801515133,2.269,163.07,163.01,6.65]
[1717801516115,47.269,163.07,163.01,6.65]
[1717801516618,53.919,163.07,163.01,6.65]
[1717801517030,53.919,163.07,162.97,1.60345144]
[1717801517338,2.2691,163.06,163.01,6.65]
[1717801517535,2.2691,163.06,162.97,1.60345144]
[1717801517720,8.9191,163.06,162.97,1.60345144]
[1717801517926,8.9191,163.06,163.0,6.65]
[1717801517927,45.0,163.05,163.0,6.65]
[1717801521548,2.2685,163.1,163.04,6.65]
[1717801521830,2.2685,163.1,163.01,15.6806]
[1717801522043,2.2685,163.1,163.05,6.65]
[1717801522630,2.2686,163.09,163.01,15.6806]
[1717801522818,2.2686,163.09,163.05,6.65]
[1717801523638,47.2686,163.1,163.05,6.65]
[1717801523833,53.9186,163.1,163.04,6.65]
[1717801524065,53.9186,163.1,163.01,15.6806]
[1717801524246,2.2687,163.09,163.04,6.65]
[1717801525451,2.2687,163.09,163.03,6.65]
[1717801526027,2.2688,163.08,163.03,6.65]
[1717801526727,2.2688,163.08,163.02,6.65]
[1717801526922,8.9189,163.07,162.97,17.28405144]
[1717801527232,8.9192,163.05,162.97,1.60345144]
[1717801527444,8.9192,163.05,162.99,6.65]
[1717801528144,8.9192,163.05,162.98,6.65]
[1717801528949,2.2692,163.05,162.98,6.65]
[1717801529246,6.65,163.05,162.99,6.65]
[1717801529445,2.2691,163.06,162.99,6.65]
[1717801529446,6.65,163.06,162.99,6.65]
[1717801529630,45.0,163.05,162.99,6.65]
[1717801532044,2.269,163.07,162.97,1.60345144]
[1717801532226,45.0,163.07,163.02,6.65]
[1717801532649,47.2688,163.08,163.02,6.65]
[1717801533032,45.0,163.08,163.03,6.65]
[1717801533435,2.2686,163.1,163.04,6.65]
[1717801534346,8.9186,163.1,163.04,6.65]
[1717801534648,2.2686,163.09,163.04,6.65]
[1717801534852,47.2686,163.09,163.04,6.65]
[1717801535453,53.9186,163.09,163.03,6.65]
[1717801537336,45.0,163.09,162.98,15.9197]
[1717801537535,8.9191,163.06,163.0,6.65]
[1717801537952,6.65,163.06,163.0,6.65]
[1717801538345,8.919,163.07,163.0,6.65]
[1717801538550,6.65,163.07,163.0,6.65]
[1717801538842,6.65,163.07,163.01,6.65]
[1717801540044,45.0,163.06,162.97,1.60345144]
[1717801540355,45.0,163.06,163.01,6.65]
[1717801540565,2.2688,163.08,163.01,6.65]
[1717801540762,6.65,163.07,163.01,6.65]
[1717801543156,8.919,163.07,163.01,6.65]
[1717801545548,6.65,163.07,163.01,6.65]
[1717801547150,8.919,163.07,163.01,6.65]
[1717801549964,8.919,163.07,162.97,1.60345144]
[1717801550152,8.919,163.07,163.01,6.65]
[1717801551571,8.919,163.07,162.97,1.60345144]
[1717801551769,51.65,163.06,163.0,6.65]
[1717801551970,6.65,163.06,163.0,6.65]
[1717801553270,2.269,163.07,163.0,6.65]
[1717801553449,8.919,163.07,163.0,6.65]
[1717801553774,45.0,163.06,163.0,6.65]
[1717801553959,45.0,163.06,162.97,1.60345144]
[1717801554160,45.0,163.06,163.0,6.65]
[1717801558280,45.0,163.06,162.97,1.60345144]
[1717801558490,45.0,163.06,163.0,6.65]
[1717801558666,51.65,163.06,163.0,6.65]
[1717801559271,53.9191,163.06,162.97,1.60345144]
[1717801559468,6.65,163.04,162.97,1.60345144]
[1717801559670,8.9194,163.04,162.97,1.60345144]
[1717801559875,6.65,163.03,162.97,8.25345144]
[1717801560878,6.65,163.03,162.98,6.65]
[1717801561888,6.65,163.03,162.97,1.60345144]
[1717801562174,45.0,163.02,162.97,8.25345144]
[1717801562381,45.0,163.02,162.97,1.60345144]
[1717801562382,51.65,163.02,162.97,1.60345144]
[1717801562683,53.9196,163.02,162.97,1.60345144]
[1717801563357,51.65,163.02,162.97,1.60345144]
[1717801563978,6.65,163.01,162.97,1.60345144]
[1717801564165,45.0,163.02,162.97,1.60345144]
[1717801564364,6.65,163.01,162.97,1.60345144]
[1717801565384,45.0,163.02,162.97,1.60345144]
[1717801565574,6.65,163.01,162.97,1.60345144]
[1717801568493,45.0,163.02,162.97,1.60345144]
[1717801568691,6.65,163.01,162.97,1.60345144]
[1717801570182,6.65,163.0,162.97,1.60345144]
[1717801570387,51.65,162.99,162.97,1.60345144]
[1717801570583,6.65,162.99,162.97,1.60345144]
[1717801572483,2.2698,163.01,162.97,1.60345144]
[1717801572683,6.65,162.99,162.97,1.60345144]
[1717801572986,6.65,163.0,162.97,1.60345144]
[1717801573191,45.0,162.99,162.97,1.60345144]
[1717801573395,6.65,163.0,162.97,1.60345144]
[1717801573586,45.0,162.99,162.97,1.60345144]
[1717801579500,51.65,162.99,162.97,1.60345144]
[1717801582408,45.0,162.99,162.97,1.60345144]
[1717801584418,51.65,162.99,162.97,1.60345144]
[1717801584703,8.9202,162.98,162.97,1.60345144]
[1717801584890,53.9202,162.98,162.97,1.60345144]
[1717801585298,53.9202,162.98,162.9,21.8035]
[1717801585492,6.65,162.96,162.9,21.8035]
[1717801586786,47.2703,162.97,162.9,21.8035]
[1717801586986,53.9203,162.97,162.9,21.8035]
[1717801588002,53.9203,162.97,162.91,6.65]
[1717801588213,51.65,162.97,162.88,6.4286]
[1717801588412,6.65,162.96,162.9,6.65]
[1717801588589,6.65,162.96,162.88,6.4286]
[1717801588910,6.65,162.96,162.9,6.65]
[1717801589310,6.65,162.96,162.88,6.4286]
[1717801589492,6.65,162.96,162.9,6.65]
[1717801595713,45.0,162.97,162.91,6.65]
[1717801596015,51.65,162.97,162.92,1.08952707]
[1717801596618,6.65,162.96,162.92,1.08952707]
[1717801597814,6.65,162.95,162.92,1.08952707]
[1717801597998,6.65,162.96,162.92,1.08952707]
[1717801599812,6.2988,163.01,162.93,6.65]
[1717801599997,6.65,162.99,162.93,6.65]
[1717801601317,6.65,163.0,162.94,6.65]
[1717801601497,2.2698,163.01,162.95,6.65]
[1717801601498,8.9198,163.01,162.95,6.65]
[1717801601908,2.2699,163.0,162.95,6.65]
[1717801602599,8.9199,163.0,162.94,6.65]
[1717801604307,2.2698,163.01,162.94,6.65]
[1717801604625,8.9199,163.0,162.92,1.08952707]
[1717801605227,2.2701,162.99,162.92,1.08952707]
[1717801605425,8.9202,162.98,162.92,1.08952707]
[1717801605727,6.65,162.96,162.92,1.08952707]
[1717801606613,6.65,162.96,162.93,0.68294302]
[1717801611929,6.65,162.97,162.93,0.68294302]
[1717801612116,2.2701,162.99,162.93,0.68294302]
[1717801612430,47.2701,162.99,162.93,0.68294302]
[1717801612730,6.65,162.97,162.93,0.68294302]
[1717801613031,47.2701,162.99,162.93,0.68294302]
[1717801613214,6.65,162.97,162.93,0.68294302]
[1717801618126,6.65,162.96,162.93,0.68294302]
[1717801618327,47.2701,162.99,162.93,0.68294302]
[1717801618652,6.65,162.96,162.93,0.68294302]
[1717801622536,6.65,162.95,162.93,0.68294302]
[1717801623122,6.65,162.94,162.93,0.68294302]
[1717801624638,6.65,162.94,162.89,0.64161665]
[1717801625822,6.65,162.93,162.89,0.64161665]
[1717801627448,2.2704,162.97,162.89,0.64161665]
[1717801627622,47.2704,162.97,162.89,0.64161665]
[1717801628445,6.65,162.94,162.89,0.64161665]
[1717801633252,6.2988,163.0,162.91,6.65]
[1717801633558,6.65,162.98,162.92,6.65]
[1717801633731,2.2701,162.99,162.92,6.65]
[1717801633928,6.65,162.98,162.91,6.65]
[1717801634127,6.65,162.97,162.92,0.66454259]
[1717801634725,2.2702,162.99,162.92,0.66454259]
[1717801634930,6.65,162.95,162.92,0.66454259]
[1717801648246,6.65,162.94,162.92,0.66454259]
[1717801650470,2.2705,162.96,162.92,0.66454259]
[1717801659254,47.2704,162.97,162.92,0.66454259]
[1717801659767,2.2705,162.96,162.92,0.66454259]
[1717801660366,2.2705,162.96,162.88,0.65674572]
[1717801661662,2.2705,162.96,162.88,7.30674572]
[1717801661863,2.2705,162.96,162.89,0.65670541]
[1717801662365,2.2706,162.95,162.89,0.65670541]
[1717801662657,2.2705,162.96,162.89,0.65670541]
[1717801662970,2.2707,162.95,162.89,0.65670541]
[1717801664567,2.2711,162.92,162.89,0.65670541]
[1717801664782,6.65,162.9,162.89,0.65670541]
[1717801665549,8.9213,162.9,162.89,0.65670541]
[1717801665756,53.9213,162.9,162.89,0.65670541]
[1717801666965,45.0,162.9,162.89,0.65670541]
[1717801667274,2.2716,162.89,162.81,6.65]
[1717801667569,6.65,162.87,162.81,6.65]
[1717801668755,47.2716,162.89,162.81,6.65]
[1717801668960,6.65,162.87,162.81,6.65]
[1717801670362,6.65,162.86,162.8,7.2789395]
[1717801670560,6.65,162.86,162.8,13.9289395]
[1717801671274,6.65,162.86,162.8,7.2789395]
[1717801671477,6.65,162.84,162.8,0.8443395]
[1717801672175,6.65,162.85,162.8,0.8443395]
[1717801672479,6.65,162.84,162.82,2.2723]
[1717801675782,6.65,162.84,162.83,2.2723]
[1717801683470,6.65,162.84,162.82,2.2723]
[1717801683672,6.65,162.83,162.82,2.2723]
[1717801701713,6.65,162.84,162.82,2.2723]
[1717801703480,6.1996,162.89,162.8,7.4943395]
[1717801703684,8.9217,162.87,162.83,2.2722]
[1717801703896,2.2719,162.86,162.82,2.2723]
[1717801704184,6.65,162.86,162.83,2.2722]
[1717801704383,8.9219,162.86,162.82,2.2723]
[1717801704606,2.2718,162.87,162.83,2.2723]
[1717801704978,8.9218,162.87,162.83,2.2723]
[1717801705607,45.0,162.86,162.83,2.2723]
[1717801707406,8.922,162.85,162.81,2.2725]
[1717801707985,2.272,162.85,162.81,2.2725]
[1717801708189,6.65,162.84,162.81,2.2725]
[1717801708608,6.65,162.84,162.82,2.2724]
[1717801709713,47.2719,162.86,162.82,2.2724]
[1717801709899,6.65,162.84,162.82,2.2724]
[1717801710210,47.2718,162.87,162.83,2.2723]
[1717801710407,6.65,162.86,162.83,2.2723]
[1717801710710,47.2718,162.87,162.83,2.2723]
[1717801710890,6.65,162.86,162.83,2.2723]
[1717801713006,6.65,162.86,162.8,13.9835395]
[1717801713189,26.6,162.9,162.8,13.9835395]
[1717801713190,6.65,162.9,162.8,7.3335395]
[1717801713389,8.9213,162.9,162.86,2.2718]
[1717801714218,8.9213,162.9,162.85,2.2719]
[1717801714592,47.2714,162.89,162.85,2.2719]
[1717801714918,2.2714,162.89,162.85,2.2719]
[1717801715284,7.11636454,162.91,162.83,6.65]
[1717801715497,6.65,162.9,162.84,6.65]
[1717801715695,7.11636454,162.95,162.86,6.65]
[1717801715915,2.2709,162.93,162.81,6.65]
[1717801716213,8.9209,162.93,162.87,6.65]
[1717801716605,6.65,162.92,162.86,6.65]
[1717801716806,2.2708,162.94,162.81,6.65]
[1717801717009,8.9209,162.93,162.87,6.65]
[1717801718815,37.60843175,162.96,162.86,6.4892]
[1717801718816,5.55493175,162.96,162.86,6.4892]
[1717801719142,8.9202,162.98,162.86,6.4892]
[1717801719297,8.9203,162.97,162.91,6.65]
[1717801719492,6.65,162.96,162.9,6.65]
[1717801720496,6.65,162.96,162.86,6.4892]
[1717801720697,6.65,162.96,162.9,6.65]
[1717801722738,6.65,162.96,162.86,6.4892]
[1717801722938,6.65,162.96,162.9,6.65]
[1717801723233,6.65,162.96,162.89,6.65]
[1717801723615,261.65493175,163.0,162.91,6.65]
[1717801723942,8.92,162.99,162.92,6.65]
[1717801724499,2.27,162.99,162.9,23.0828]
[1717801724699,6.65,162.98,162.92,6.65]
[1717801725310,8.9202,162.98,162.9,23.0828]
[1717801725511,8.9202,162.98,162.92,6.65]
[1717801727930,8.9202,162.98,162.91,6.65]
[1717801728629,6.65,162.97,162.91,6.65]
[1717801728802,2.27,163.0,162.91,6.65]
[1717801729007,6.65,162.97,162.91,6.65]
[1717801729432,6.65,162.97,162.9,23.0828]
[1717801729730,6.65,162.97,162.91,6.65]
[1717801733137,6.65,162.97,162.91,6.15]
[1717801733927,6.65,162.98,162.92,6.65]
[1717801736338,6.65,162.98,162.91,6.65]
[1717801736519,6.65,162.98,162.92,6.65]
[1717801741143,47.2699,163.0,162.93,6.65]
[1717801741449,6.65,162.99,162.93,6.65]
[1717801743024,47.2699,163.0,162.93,6.65]
[1717801743331,8.9199,163.0,162.93,6.65]
[1717801743541,6.65,162.99,162.93,6.65]
[1717801745130,6.65,162.99,162.9,23.0828]
[1717801745329,6.65,162.97,162.9,6.4892]
[1717801745543,6.65,162.96,162.9,6.4892]
[1717801745842,6.65,162.96,162.86,22.4548]
[1717801746018,6.65,162.96,162.89,6.65]
[1717801746221,6.65,162.96,162.86,22.4548]
[1717801746439,6.65,162.96,162.89,6.65]
[1717801747061,6.65,162.95,162.89,6.65]
[1717801748363,6.65,162.95,162.86,22.4548]
[1717801748528,6.65,162.93,162.87,6.65]
[1717801749229,6.65,162.93,162.86,6.2027]
[1717801749751,2.2708,162.94,162.86,12.8527]
[1717801749752,6.65,162.92,162.86,12.8527]
[1717801750248,6.65,162.92,162.83,16.2521]
[1717801750436,2.2709,162.93,162.85,6.65]
[1717801750437,6.65,162.91,162.85,6.65]
[1717801751350,6.65,162.91,162.83,16.2521]
[1717801751551,6.65,162.91,162.85,6.65]
[1717801751742,6.65,162.92,162.86,6.65]
[1717801752048,6.65,162.93,162.86,6.65]
[1717801752746,6.65,162.93,162.87,0.20912866]
[1717801753063,2.2706,162.95,162.87,0.20912866]
[1717801753247,6.65,162.93,162.87,0.20912866]
[1717801755545,6.65,162.92,162.87,0.20912866]
[1717801758144,6.65,162.93,162.87,0.20912866]
[1717801763469,6.65,162.93,162.84,0.11643341]
[1717801763771,2.2706,162.95,162.84,0.11643341]
[1717801763957,6.65,162.93,162.84,0.11643341]
[1717801764297,47.2706,162.95,162.84,0.11643341]
[1717801764460,6.65,162.93,162.84,0.11643341]
[1717801764965,262.765,163.01,162.92,6.65]
[1717801765270,6.65,163.0,162.94,6.65]
[1717801766144,8.9199,163.0,162.94,6.65]
[1717801766872,8.9199,163.0,162.95,0.07844436]
[1717801766873,2.2699,163.0,162.95,0.07844436]
[1717801767170,6.65,163.0,162.95,0.07844436]
[1717801768149,6.65,162.99,162.95,0.07844436]
[1717801768971,8.9348,163.01,162.95,0.07844436]
[1717801769158,45.0,163.0,162.95,0.07844436]
[1717801769361,6.65,162.99,162.95,0.07844436]
[1717801770577,6.65,162.99,162.93,6.65]
[1717801773182,6.65,162.99,162.89,15.5321]
[1717801773183,6.65,162.99,162.92,6.65]
[1717801773980,6.65,162.99,162.93,0.04049947]
[1717801777586,6.65,162.99,162.92,6.65]
[1717801780284,6.65,162.99,162.9,6.4818]
[1717801780475,47.2699,163.0,162.92,6.65]
[1717801780675,6.65,162.99,162.92,6.65]
[1717801780977,6.65,162.99,162.9,6.4818]
[1717801781179,6.65,162.99,162.91,0.04050366]
[1717801781387,6.65,162.98,162.92,6.65]
[1717801781585,6.65,162.98,162.93,0.04049869]
[1717801782689,47.2699,163.0,162.93,0.04049869]
[1717801782988,6.65,162.98,162.93,0.04049869]
[1717801787172,47.2699,163.0,162.93,0.04049869]
[1717801787378,6.65,162.98,162.93,0.04049869]
[1717801789290,47.2699,163.0,162.93,0.04049869]
[1717801789487,6.65,162.98,162.93,0.04049869]
[1717801791581,47.2699,163.0,162.93,0.04049869]